fUST/lending_fUST_20250210
["ID","MTS","AMOUNT","RATE_DAILY","PERIOD"]
[352573983,1739175045999,-500.0,0.00012739,2]
[352573986,1739175046009,-379.8,0.00012739,2]
[352573989,1739175046019,-500.0,0.00012739,2]
[352573993,1739175046029,-790.65,0.00012739,2]
[352573996,1739175046039,-898.09,0.00012739,2]
[352573999,1739175046050,-500.0,0.00012739,2]
[352574002,1739175046059,-500.0,0.00012739,2]
[352574004,1739175046069,-500.0,0.00012739,2]
[352574008,1739175046079,-5296.17,0.00012739,2]
[352574011,1739175046089,-758.03,0.00012739,2]
[352574014,1739175046099,-904.74,0.00012739,2]
[352574016,1739175046108,-1142.61,0.00012739,2]
[352574018,1739175046117,-1072.74,0.00012739,2]
[352574020,1739175046126,-500.0,0.00012739,2]
[352574022,1739175046136,-1925.14,0.00012739,2]
[352574024,1739175046145,-1810.13425768,0.00012744,2]
[352574026,1739175046154,-872.43024915,0.00012775,2]
[352574028,1739175046163,-500.0,0.00012794,2]
[352574030,1739175046173,-151.0,0.00012876,2]
[352574032,1739175046182,-181.228071,0.00012876,2]
[352574034,1739175046192,-500.0,0.00012876,2]
[352574036,1739175046201,-500.0,0.00012876,2]
[352574038,1739175046211,-688.78,0.00012876,2]
[352574040,1739175046221,-1034.91,0.00012876,2]
[352574042,1739175046231,-500.0,0.00012876,2]
[352574044,1739175046240,-9467.32,0.00012876,2]
[352574046,1739175046249,-500.0,0.00012876,2]
[352574048,1739175046259,-512.81,0.00012876,2]
[352574050,1739175046268,-1737.53,0.00012876,2]
[352574052,1739175046277,-800.73,0.00012876,2]
[352574054,1739175046286,-500.0,0.00012876,2]
[352574056,1739175046297,-2140.57,0.00012876,2]
[352574058,1739175046307,-500.0,0.00012876,2]
[352574060,1739175046316,-500.0,0.00012876,2]
[352574062,1739175046326,-858.14,0.00012876,2]
[352574064,1739175046335,-500.0,0.00012876,2]
[352574066,1739175046344,-500.0,0.00012876,2]
[352574068,1739175046354,-568.15,0.00012876,2]
[352574070,1739175046364,-500.0,0.00012876,2]
[352574072,1739175046374,-790.65,0.00012876,2]
[352574074,1739175046383,-898.09,0.00012876,2]
[352574076,1739175046393,-500.0,0.00012876,2]
[352574078,1739175046402,-500.0,0.00012876,2]
[352574080,1739175046411,-500.0,0.00012876,2]
[352574082,1739175046421,-5296.17,0.00012876,2]
[352574084,1739175046432,-758.03,0.00012876,2]
[352574086,1739175046442,-904.74,0.00012876,2]
[352574098,1739175046540,-1142.61,0.00012876,2]
[352574100,1739175046550,-1072.74,0.00012876,2]
[352574102,1739175046559,-500.0,0.00012876,2]
[352574104,1739175046569,-1925.14,0.00012876,2]
[352574106,1739175046578,-590.42408751,0.000129,2]
[352574108,1739175046589,-590.4240875,0.000129,2]
[352574110,1739175046598,-590.4240875,0.000129,2]
[352574112,1739175046608,-120774.11343522,0.00013,2]
[352574116,1739175046631,-4005.12868514,0.00013,2]
[352574124,1739175046705,-583.44169035,0.00013,2]
[352574130,1739175046749,-604.53089662,0.00013,2]
[352574135,1739175046790,-330.30737523,0.00013,2]
[352574158,1739175047004,-606.7919115,0.00010958,2]
[352574170,1739175047114,-2251.0280885,0.00010958,2]
[352574172,1739175047124,-2857.82,0.00011095,2]
[352574174,1739175047134,-156.24179603,0.00011232,2]
[352574187,1739175047252,-103.28649162,0.00011232,2]
[352574189,1739175047265,-2405.06608831,0.00011232,2]
[352575560,1739175151093,16068.47534498,0.00016,120]
[352575561,1739175639451,220.0,8.214e-05,2]
[352575564,1739175936154,-514.05680641,9.694e-05,2]
[352575566,1739176025138,-2922.11904454,9.597e-05,2]
[352575567,1739176025160,-4485.94319359,9.694e-05,2]
[352575568,1739176025182,-537.9351735,9.891e-05,2]
[352575569,1739176025207,-300.0,0.00010299,2]
[352575570,1739176025228,-6427.06731195,0.000103,2]
[352575571,1739176031095,-2957.32385285,0.000103,2]
[352575572,1739176046092,-176.34944875,0.00010197,2]
[352575575,1739176150091,-980.0,0.00010197,2]
[352575581,1739176170152,-113.9613109,0.00010197,2]
[352575582,1739176170176,-1846.0386891,0.000103,2]
[352575612,1739176232349,-300.0,9.999e-05,2]
[352575614,1739176232360,-269.26707914,0.0001,2]
[352575620,1739176232402,-10697.22065832,0.0001,2]
[352575622,1739176232414,-122.9853489,0.000103,2]
[352575624,1739176232424,-238.47538119,0.00010748,2]
[352575626,1739176232436,-7438.69753278,0.00010774,2]
[352575629,1739176232447,-1120.08856464,0.00010872,2]
[352575630,1739176232458,-2606.0736707,0.0001095,2]
[352575632,1739176232469,-298.96586594,0.00010957,2]
[352575634,1739176232479,-500.0,0.00010958,2]
[352575636,1739176232488,-500.0,0.00010958,2]
[352575662,1739176232650,-500.0,0.00010958,2]
[352575665,1739176232667,-500.0,0.00010958,2]
[352575667,1739176232676,-500.0,0.00010958,2]
[352575669,1739176232686,-500.0,0.00010958,2]
[352575671,1739176232695,-500.0,0.00010958,2]
[352575673,1739176232704,-364.875413,0.00010958,2]
[352575674,1739176232713,-500.0,0.00010958,2]
[352575675,1739176232723,-500.0,0.00010958,2]
[352575676,1739176232732,-500.0,0.00010958,2]
[352575678,1739176232742,-500.0,0.00010958,2]
[352575680,1739176232751,-589.66968144,0.00010958,2]
[352575682,1739176232760,-500.0,0.00010958,2]
[352575684,1739176232770,-500.0,0.00010958,2]
[352575686,1739176232780,-500.0,0.00010958,2]
[352575688,1739176232790,-500.0,0.00010958,2]
[352575691,1739176232799,-500.0,0.00010958,2]
[352575694,1739176232808,-500.0,0.00010958,2]
[352575697,1739176232818,-497.3,0.00010958,2]
[352575699,1739176232827,-500.0,0.00010958,2]
[352575701,1739176232837,-500.0,0.00010958,2]
[352575702,1739176232846,-500.0,0.00010958,2]
[352575703,1739176232855,-500.0,0.00010958,2]
[352575704,1739176232865,-301.34419279,0.00010958,2]
[352575705,1739176232875,-500.0,0.00010958,2]
[352575706,1739176232884,-500.0,0.00010958,2]
[352575707,1739176232894,-500.0,0.00010958,2]
[352575708,1739176232903,-500.0,0.00010958,2]
[352575709,1739176232914,-500.0,0.00010958,2]
[352575710,1739176232923,-500.0,0.00010958,2]
[352575711,1739176232933,-500.0,0.00010958,2]
[352575712,1739176232943,-500.0,0.00010958,2]
[352575713,1739176232952,-500.0,0.00010958,2]
[352575714,1739176232962,-500.0,0.00010958,2]
[352575715,1739176232971,-500.0,0.00010958,2]
[352575716,1739176232980,-500.0,0.00010958,2]
[352575717,1739176232990,-500.0,0.00010958,2]
[352575718,1739176232999,-500.0,0.00010958,2]
[352575719,1739176233009,-500.0,0.00010958,2]
[352575720,1739176233019,-500.0,0.00010958,2]
[352575721,1739176233029,-500.0,0.00010958,2]
[352575722,1739176233041,-500.0,0.00010958,2]
[352575723,1739176233051,-500.0,0.00010958,2]
[352575724,1739176233061,-500.0,0.00010958,2]
[352575725,1739176233071,-500.0,0.00010958,2]
[352575726,1739176233082,-500.0,0.00010958,2]
[352575727,1739176233092,-500.0,0.00010958,2]
[352575728,1739176233102,-500.0,0.00010958,2]
[352575729,1739176233112,-500.0,0.00010958,2]
[352575730,1739176233123,-315.70970659,0.00010958,2]
[352575731,1739176233133,-500.0,0.00010958,2]
[352575732,1739176233143,-500.0,0.00010958,2]
[352575733,1739176233157,-524.71,0.00010958,2]
[352575734,1739176233167,-500.0,0.00010958,2]
[352575735,1739176233178,-505.96156691,0.00010958,2]
[352575736,1739176233188,-500.0,0.00010958,2]
[352575737,1739176233200,-500.0,0.00010958,2]
[352575738,1739176233210,-500.0,0.00010958,2]
[352575739,1739176233221,-500.0,0.00010958,2]
[352575740,1739176233231,-500.0,0.00010958,2]
[352575741,1739176233242,-500.0,0.00010958,2]
[352575742,1739176233252,-500.0,0.00010958,2]
[352575743,1739176233262,-500.0,0.00010958,2]
[352575744,1739176233272,-500.0,0.00010958,2]
[352575745,1739176233283,-500.0,0.00010958,2]
[352575746,1739176233293,-500.0,0.00010958,2]
[352575747,1739176233303,-500.0,0.00010958,2]
[352575748,1739176233313,-343.50320879,0.00010958,2]
[352575749,1739176233323,-561.44797022,0.00010958,2]
[352575750,1739176233333,-500.0,0.00010958,2]
[352575751,1739176233343,-500.0,0.00010958,2]
[352575752,1739176233353,-500.0,0.00010958,2]
[352575753,1739176233363,-500.0,0.00010958,2]
[352575754,1739176233373,-500.0,0.00010958,2]
[352575755,1739176233383,-628.28103478,0.00010958,2]
[352575756,1739176233393,-500.0,0.00010958,2]
[352575757,1739176233403,-500.0,0.00010958,2]
[352575758,1739176233413,-500.0,0.00010958,2]
[352575759,1739176233422,-500.0,0.00010958,2]
[352575760,1739176233432,-500.0,0.00010958,2]
[352575761,1739176233442,-500.0,0.00010958,2]
[352575762,1739176233452,-500.0,0.00010958,2]
[352575763,1739176233461,-500.0,0.00010958,2]
[352575764,1739176233470,-500.0,0.00010958,2]
[352575765,1739176233480,-500.0,0.00010958,2]
[352575766,1739176233490,-500.0,0.00010958,2]
[352575767,1739176233500,-500.0,0.00010958,2]
[352575768,1739176233510,-500.0,0.00010958,2]
[352575769,1739176233521,-500.0,0.00010958,2]
[352575770,1739176233531,-500.0,0.00010958,2]
[352575771,1739176233544,-500.0,0.00010958,2]
[352575772,1739176233554,-500.0,0.00010958,2]
[352575773,1739176233564,-500.0,0.00010958,2]
[352575774,1739176233574,-500.0,0.00010958,2]
[352575775,1739176233585,-500.0,0.00010958,2]
[352575776,1739176233594,-500.0,0.00010958,2]
[352575777,1739176233605,-500.0,0.00010958,2]
[352575778,1739176233615,-500.0,0.00010958,2]
[352575779,1739176233625,-500.0,0.00010958,2]
[352575780,1739176233635,-844.45,0.00010958,2]
[352575781,1739176233644,-500.0,0.00010958,2]
[352575782,1739176233653,-500.0,0.00010958,2]
[352575783,1739176233663,-500.0,0.00010958,2]
[352575784,1739176233672,-500.0,0.00010958,2]
[352575785,1739176233682,-500.0,0.00010958,2]
[352575786,1739176233691,-500.0,0.00010958,2]
[352575787,1739176233701,-500.0,0.00010958,2]
[352575788,1739176233710,-500.0,0.00010958,2]
[352575789,1739176233720,-500.0,0.00010958,2]
[352575790,1739176233730,-500.0,0.00010958,2]
[352575791,1739176233741,-500.0,0.00010958,2]
[352575792,1739176233751,-65.50117223,0.00010958,2]
[352575793,1739176233766,-300.0,0.00010958,2]
[352575811,1739176238222,-134.49882777,0.00010958,2]
[352575813,1739176238232,-500.0,0.00010958,2]
[352575815,1739176238242,-500.0,0.00010958,2]
[352575817,1739176238251,-500.0,0.00010958,2]
[352575819,1739176238261,-500.0,0.00010958,2]
[352575821,1739176238270,-500.0,0.00010958,2]
[352575823,1739176238279,-500.0,0.00010958,2]
[352575825,1739176238289,-500.0,0.00010958,2]
[352575827,1739176238299,-500.0,0.00010958,2]
[352575829,1739176238307,-500.0,0.00010958,2]
[352575831,1739176238317,-500.0,0.00010958,2]
[352575833,1739176238326,-500.0,0.00010958,2]
[352575836,1739176238336,-500.0,0.00010958,2]
[352575838,1739176238345,-500.0,0.00010958,2]
[352575840,1739176238355,-3425.53,0.00010958,2]
[352575842,1739176238364,-500.0,0.00010958,2]
[352575844,1739176238373,-500.0,0.00010958,2]
[352575846,1739176238383,-405.577245,0.00010958,2]
[352575848,1739176238392,-500.0,0.00010958,2]
[352575850,1739176238401,-500.0,0.00010958,2]
[352575852,1739176238410,-500.0,0.00010958,2]
[352575854,1739176238420,-500.0,0.00010958,2]
[352575856,1739176238429,-500.0,0.00010958,2]
[352575858,1739176238438,-500.0,0.00010958,2]
[352575859,1739176238447,-500.0,0.00010958,2]
[352575860,1739176238456,-1859.98,0.00010958,2]
[352575861,1739176238465,-522.25,0.00010958,2]
[352575862,1739176238474,-500.0,0.00010958,2]
[352575863,1739176238483,-500.0,0.00010958,2]
[352575864,1739176238493,-500.0,0.00010958,2]
[352575865,1739176238502,-500.0,0.00010958,2]
[352575866,1739176238511,-500.0,0.00010958,2]
[352575867,1739176238520,-500.0,0.00010958,2]
[352575868,1739176238529,-500.0,0.00010958,2]
[352575869,1739176238538,-500.0,0.00010958,2]
[352575870,1739176238547,-500.0,0.00010958,2]
[352575871,1739176238556,-500.0,0.00010958,2]
[352575872,1739176238565,-500.0,0.00010958,2]
[352575873,1739176238575,-1011.61,0.00010958,2]
[352575874,1739176238584,-500.0,0.00010958,2]
[352575875,1739176238593,-500.0,0.00010958,2]
[352575876,1739176238602,-18089.75,0.00010958,2]
[352575877,1739176238611,-500.0,0.00010958,2]
[352575878,1739176238619,-500.0,0.00010958,2]
[352575879,1739176238630,-500.0,0.00010958,2]
[352575880,1739176238639,-647.77,0.00010958,2]
[352575881,1739176238648,-327.0341796,0.00010958,2]
[352575883,1739176238657,-801.62,0.00010958,2]
[352575885,1739176238667,-500.0,0.00010958,2]
[352575887,1739176238676,-500.0,0.00010958,2]
[352575889,1739176238685,-1371.26,0.00010958,2]
[352575891,1739176238695,-500.0,0.00010958,2]
[352575893,1739176238704,-3891.79,0.00010958,2]
[352575895,1739176238713,-500.0,0.00010958,2]
[352575897,1739176238722,-500.0,0.00010958,2]
[352575899,1739176238731,-500.0,0.00010958,2]
[352575902,1739176238743,-500.0,0.00010958,2]
[352575904,1739176238752,-500.0,0.00010958,2]
[352575906,1739176238761,-500.0,0.00010958,2]
[352575907,1739176238770,-500.0,0.00010958,2]
[352575909,1739176238779,-500.0,0.00010958,2]
[352575912,1739176238788,-500.0,0.00010958,2]
[352575914,1739176238797,-299.73412603,0.00010958,2]
[352575916,1739176238807,-500.0,0.00010958,2]
[352575918,1739176238815,-500.0,0.00010958,2]
[352575920,1739176238824,-511.46809914,0.00010958,2]
[352575922,1739176238833,-500.0,0.00010958,2]
[352575924,1739176238842,-500.0,0.00010958,2]
[352575926,1739176238851,-500.0,0.00010958,2]
[352575928,1739176238860,-500.0,0.00010958,2]
[352575930,1739176238869,-596.73,0.00010958,2]
[352575932,1739176238878,-500.0,0.00010958,2]
[352575934,1739176238887,-1383.93,0.00010958,2]
[352575936,1739176238896,-500.0,0.00010958,2]
[352575938,1739176238905,-500.0,0.00010958,2]
[352575940,1739176238915,-500.0,0.00010958,2]
[352575942,1739176238924,-679.91,0.00010958,2]
[352575944,1739176238933,-500.0,0.00010958,2]
[352575946,1739176238942,-500.0,0.00010958,2]
[352575948,1739176238951,-564.98,0.00010958,2]
[352575950,1739176238960,-500.0,0.00010958,2]
[352575952,1739176238969,-500.0,0.00010958,2]
[352575954,1739176238978,-646.42,0.00010958,2]
[352575956,1739176238987,-500.0,0.00010958,2]
[352575957,1739176238996,-1228.06,0.00010958,2]
[352575959,1739176239006,-500.0,0.00010958,2]
[352575962,1739176239016,-500.0,0.00010958,2]
[352575964,1739176239025,-500.0,0.00010958,2]
[352575966,1739176239035,-500.0,0.00010958,2]
[352575968,1739176239044,-500.0,0.00010958,2]
[352575969,1739176239053,-500.0,0.00010958,2]
[352575971,1739176239062,-578.5,0.00010958,2]
[352575973,1739176239072,-642.43,0.00010958,2]
[352575976,1739176239081,-500.0,0.00010958,2]
[352575977,1739176239091,-500.0,0.00010958,2]
[352575980,1739176239101,-500.0,0.00010958,2]
[352575981,1739176239110,-500.0,0.00010958,2]
[352575984,1739176239119,-500.0,0.00010958,2]
[352575985,1739176239129,-500.0,0.00010958,2]
[352575988,1739176239138,-500.0,0.00010958,2]
[352575990,1739176239149,-501.07579476,0.00010958,2]
[352575992,1739176239161,-500.0,0.00010958,2]
[352575993,1739176239171,-500.0,0.00010958,2]
[352575995,1739176239180,-500.0,0.00010958,2]
[352575998,1739176239191,-500.0,0.00010958,2]
[352576000,1739176239201,-500.0,0.00010958,2]
[352576002,1739176239210,-1441.94,0.00010958,2]
[352576004,1739176239220,-500.0,0.00010958,2]
[352576006,1739176239231,-503.38356112,0.00010958,2]
[352576008,1739176239240,-500.0,0.00010958,2]
[352576009,1739176239250,-1123.55,0.00010958,2]
[352576011,1739176239261,-500.0,0.00010958,2]
[352576013,1739176239271,-7773.71,0.00010958,2]
[352576016,1739176239280,-500.0,0.00010958,2]
[352576018,1739176239291,-500.0,0.00010958,2]
[352576020,1739176239301,-500.0,0.00010958,2]
[352576022,1739176239310,-758.06,0.00010958,2]
[352576024,1739176239321,-1593.69,0.00010958,2]
[352576026,1739176239333,-500.0,0.00010958,2]
[352576028,1739176239342,-500.0,0.00010958,2]
[352576030,1739176239352,-500.0,0.00010958,2]
[352576032,1739176239361,-846.15,0.00010958,2]
[352576034,1739176239370,-500.0,0.00010958,2]
[352576036,1739176239380,-500.0,0.00010958,2]
[352576038,1739176239390,-500.0,0.00010958,2]
[352576040,1739176239399,-592.24103352,0.00010958,2]
[352576042,1739176239408,-500.0,0.00010958,2]
[352576044,1739176239419,-500.0,0.00010958,2]
[352576045,1739176239429,-500.0,0.00010958,2]
[352576048,1739176239438,-500.0,0.00010958,2]
[352576050,1739176239447,-500.0,0.00010958,2]
[352576052,1739176239457,-500.0,0.00010958,2]
[352576054,1739176239466,-1596.76,0.00010958,2]
[352576056,1739176239475,-500.0,0.00010958,2]
[352576057,1739176239484,-500.0,0.00010958,2]
[352576059,1739176239493,-500.0,0.00010958,2]
[352576062,1739176239502,-556.64317837,0.00010958,2]
[352576064,1739176239513,-500.0,0.00010958,2]
[352576066,1739176239522,-2715.66,0.00010958,2]
[352576068,1739176239531,-1408.51,0.00010958,2]
[352576070,1739176239541,-150.53276455,0.00010973,2]
[352576072,1739176239551,-188.2255022,0.00010995,2]
[352576074,1739176239560,-420.0,0.00010999,2]
[352576076,1739176239570,-300.16278414,0.00011,2]
[352576078,1739176239579,-500.0,0.00011095,2]
[352576080,1739176239588,-500.0,0.00011095,2]
[352576082,1739176239597,-500.0,0.00011095,2]
[352576084,1739176239606,-500.0,0.00011095,2]
[352576086,1739176239616,-500.0,0.00011095,2]
[352576088,1739176239625,-500.0,0.00011095,2]
[352576090,1739176239634,-500.0,0.00011095,2]
[352576092,1739176239643,-500.0,0.00011095,2]
[352576094,1739176239653,-524.71,0.00011095,2]
[352576108,1739176239758,-500.0,0.00011095,2]
[352576110,1739176239768,-500.0,0.00011095,2]
[352576112,1739176239777,-500.0,0.00011095,2]
[352576114,1739176239786,-500.0,0.00011095,2]
[352576116,1739176239796,-500.0,0.00011095,2]
[352576118,1739176239804,-500.0,0.00011095,2]
[352576120,1739176239813,-500.0,0.00011095,2]
[352576122,1739176239822,-500.0,0.00011095,2]
[352576124,1739176239831,-500.0,0.00011095,2]
[352576126,1739176239841,-500.0,0.00011095,2]
[352576128,1739176239850,-500.0,0.00011095,2]
[352576130,1739176239859,-500.0,0.00011095,2]
[352576132,1739176239868,-500.0,0.00011095,2]
[352576134,1739176239878,-500.0,0.00011095,2]
[352576136,1739176239887,-844.45,0.00011095,2]
[352576138,1739176239896,-500.0,0.00011095,2]
[352576140,1739176239905,-500.0,0.00011095,2]
[352576142,1739176239915,-500.0,0.00011095,2]
[352576144,1739176239924,-500.0,0.00011095,2]
[352576146,1739176239933,-500.0,0.00011095,2]
[352576148,1739176239942,-500.0,0.00011095,2]
[352576150,1739176239952,-500.0,0.00011095,2]
[352576152,1739176239961,-3425.53,0.00011095,2]
[352576154,1739176239970,-500.0,0.00011095,2]
[352576156,1739176239979,-500.0,0.00011095,2]
[352576158,1739176239988,-1859.98,0.00011095,2]
[352576160,1739176239997,-522.25,0.00011095,2]
[352576162,1739176240007,-500.0,0.00011095,2]
[352576164,1739176240016,-500.0,0.00011095,2]
[352576166,1739176240025,-500.0,0.00011095,2]
[352576168,1739176240034,-500.0,0.00011095,2]
[352576170,1739176240043,-500.0,0.00011095,2]
[352576172,1739176240053,-1011.61,0.00011095,2]
[352576174,1739176240063,-500.0,0.00011095,2]
[352576176,1739176240072,-18089.75,0.00011095,2]
[352576179,1739176240081,-500.0,0.00011095,2]
[352576181,1739176240090,-500.0,0.00011095,2]
[352576182,1739176240100,-647.77,0.00011095,2]
[352576185,1739176240109,-801.62,0.00011095,2]
[352576187,1739176240118,-1371.26,0.00011095,2]
[352576189,1739176240127,-500.0,0.00011095,2]
[352576191,1739176240137,-3891.79,0.00011095,2]
[352576193,1739176240146,-500.0,0.00011095,2]
[352576195,1739176240161,-500.0,0.00011095,2]
[352576197,1739176240171,-500.0,0.00011095,2]
[352576199,1739176240181,-500.0,0.00011095,2]
[352576201,1739176240190,-596.73,0.00011095,2]
[352576203,1739176240208,-1383.93,0.00011095,2]
[352576205,1739176240220,-500.0,0.00011095,2]
[352576207,1739176240229,-500.0,0.00011095,2]
[352576209,1739176240239,-679.91,0.00011095,2]
[352576211,1739176240248,-564.98,0.00011095,2]
[352576213,1739176240257,-500.0,0.00011095,2]
[352576215,1739176240266,-646.42,0.00011095,2]
[352576217,1739176240276,-1228.06,0.00011095,2]
[352576219,1739176240285,-500.0,0.00011095,2]
[352576221,1739176240296,-500.0,0.00011095,2]
[352576223,1739176240305,-500.0,0.00011095,2]
[352576225,1739176240314,-578.5,0.00011095,2]
[352576227,1739176240323,-642.43,0.00011095,2]
[352576229,1739176240332,-202.84905446,0.00011095,2]
[352576231,1739176240342,-500.0,0.00011095,2]
[352576233,1739176240351,-500.0,0.00011095,2]
[352576235,1739176240360,-500.0,0.00011095,2]
[352576237,1739176240370,-500.0,0.00011095,2]
[352576239,1739176240379,-384.8637739,0.00011095,2]
[352576241,1739176240388,-1441.94,0.00011095,2]
[352576243,1739176240398,-1123.55,0.00011095,2]
[352576245,1739176240407,-500.0,0.00011095,2]
[352576247,1739176240416,-7773.71,0.00011095,2]
[352576249,1739176240425,-500.0,0.00011095,2]
[352576251,1739176240435,-500.0,0.00011095,2]
[352576253,1739176240444,-758.06,0.00011095,2]
[352576255,1739176240453,-1593.69,0.00011095,2]
[352576257,1739176240462,-500.0,0.00011095,2]
[352576259,1739176240471,-500.0,0.00011095,2]
[352576261,1739176240481,-846.15,0.00011095,2]
[352576263,1739176240490,-500.0,0.00011095,2]
[352576266,1739176240499,-500.0,0.00011095,2]
[352576268,1739176240508,-500.0,0.00011095,2]
[352576270,1739176240517,-500.0,0.00011095,2]
[352576272,1739176240527,-1596.76,0.00011095,2]
[352576274,1739176240536,-500.0,0.00011095,2]
[352576276,1739176240546,-500.0,0.00011095,2]
[352576278,1739176240555,-500.0,0.00011095,2]
[352576280,1739176240564,-2715.66,0.00011095,2]
[352576282,1739176240574,-1408.51,0.00011095,2]
[352576284,1739176240583,-500.0,0.00011231,2]
[352576286,1739176240592,-500.0,0.00011231,2]
[352576288,1739176240601,-157.81917039,0.00011231,2]
[352576290,1739176240610,-500.0,0.00011231,2]
[352576292,1739176240620,-449.50099067,0.00011231,2]
[352576294,1739176240629,-500.0,0.00011232,2]
[352576296,1739176240638,-500.0,0.00011232,2]
[352576298,1739176240647,-500.0,0.00011232,2]
[352576300,1739176240656,-500.0,0.00011232,2]
[352576302,1739176240665,-500.0,0.00011232,2]
[352576304,1739176240675,-500.0,0.00011232,2]
[352576306,1739176240684,-500.0,0.00011232,2]
[352576308,1739176240693,-524.71,0.00011232,2]
[352576310,1739176240702,-500.0,0.00011232,2]
[352576312,1739176240711,-500.0,0.00011232,2]
[352576314,1739176240720,-500.0,0.00011232,2]
[352576316,1739176240731,-500.0,0.00011232,2]
[352576318,1739176240740,-500.0,0.00011232,2]
[352576320,1739176240749,-500.0,0.00011232,2]
[352576322,1739176240758,-500.0,0.00011232,2]
[352576324,1739176240766,-500.0,0.00011232,2]
[352576326,1739176240775,-500.0,0.00011232,2]
[352576328,1739176240784,-500.0,0.00011232,2]
[352576330,1739176240794,-500.0,0.00011232,2]
[352576332,1739176240803,-500.0,0.00011232,2]
[352576334,1739176240812,-500.0,0.00011232,2]
[352576336,1739176240821,-500.0,0.00011232,2]
[352576338,1739176240830,-844.45,0.00011232,2]
[352576340,1739176240839,-500.0,0.00011232,2]
[352576342,1739176240847,-500.0,0.00011232,2]
[352576344,1739176240857,-500.0,0.00011232,2]
[352576346,1739176240866,-500.0,0.00011232,2]
[352576348,1739176240875,-500.0,0.00011232,2]
[352576350,1739176240883,-500.0,0.00011232,2]
[352576352,1739176240893,-500.0,0.00011232,2]
[352576354,1739176240902,-3425.53,0.00011232,2]
[352576356,1739176240911,-500.0,0.00011232,2]
[352576358,1739176240920,-1859.98,0.00011232,2]
[352576360,1739176240929,-500.0,0.00011232,2]
[352576362,1739176240939,-522.25,0.00011232,2]
[352576364,1739176240948,-500.0,0.00011232,2]
[352576366,1739176240957,-500.0,0.00011232,2]
[352576368,1739176240966,-500.0,0.00011232,2]
[352576370,1739176240975,-500.0,0.00011232,2]
[352576372,1739176240985,-1011.61,0.00011232,2]
[352576374,1739176240994,-500.0,0.00011232,2]
[352576376,1739176241003,-18089.75,0.00011232,2]
[352576378,1739176241012,-500.0,0.00011232,2]
[352576380,1739176241021,-500.0,0.00011232,2]
[352576382,1739176241031,-647.77,0.00011232,2]
[352576384,1739176241040,-801.62,0.00011232,2]
[352576386,1739176241049,-1371.26,0.00011232,2]
[352576388,1739176241058,-500.0,0.00011232,2]
[352576391,1739176241067,-3891.79,0.00011232,2]
[352576392,1739176241077,-500.0,0.00011232,2]
[352576395,1739176241086,-500.0,0.00011232,2]
[352576397,1739176241095,-500.0,0.00011232,2]
[352576399,1739176241104,-500.0,0.00011232,2]
[352576401,1739176241113,-596.73,0.00011232,2]